[Event "Early-Titled-Tuesday-Blitz-April-16-2024"]
[Site "Chess.com"]
[Date "2024.04.16"]
[Round "6"]
[White "Likvidator228"]
[Black "Korchmar_Vasiliy"]
[Result "0-1"]
[WhiteElo "2553"]
[BlackElo "2713"]
[TimeControl "180+1"]
[EndTime "9:10:14 PDT"]
[Termination "Korchmar_Vasiliy won by resignation"]

1. d4 {[%clk 0:03:00.9]} 1... Nf6 {[%clk 0:02:58.5]} 2. Nf3 {[%clk 0:03:00.3]}
2... g6 {[%clk 0:02:58.5]} 3. Bf4 {[%clk 0:03:00.5]} 3... Bg7 {[%clk 0:02:57.9]}
4. e3 {[%clk 0:03:01]} 4... O-O {[%clk 0:02:58]} 5. h3 {[%clk 0:03:01.5]} 5...
c5 {[%clk 0:02:52.7]} 6. c3 {[%clk 0:03:01.5]} 6... d5 {[%clk 0:02:49.6]} 7.
Nbd2 {[%clk 0:03:01.3]} 7... b6 {[%clk 0:02:45]} 8. a4 {[%clk 0:03:00.6]} 8...
a6 {[%clk 0:02:44.4]} 9. Be2 {[%clk 0:02:58]} 9... Bb7 {[%clk 0:02:43.6]} 10.
O-O {[%clk 0:02:57.9]} 10... Nc6 {[%clk 0:02:43.8]} 11. Ne5 {[%clk 0:02:57.6]}
11... Nxe5 {[%clk 0:02:41.8]} 12. Bxe5 {[%clk 0:02:57.7]} 12... Nd7 {[%clk
0:02:37]} 13. Bxg7 {[%clk 0:02:57.1]} 13... Kxg7 {[%clk 0:02:37.9]} 14. f4
{[%clk 0:02:57.3]} 14... e6 {[%clk 0:02:34]} 15. Nf3 {[%clk 0:02:55.7]} 15...
Nf6 {[%clk 0:02:23]} 16. Ne5 {[%clk 0:02:55]} 16... Ne4 {[%clk 0:02:23.5]} 17.
Bd3 {[%clk 0:02:52]} 17... f6 {[%clk 0:02:23.1]} 18. Nf3 {[%clk 0:02:49.5]}
18... Ng3 {[%clk 0:02:16.3]} 19. Re1 {[%clk 0:02:46.9]} 19... Qc7 {[%clk
0:02:10.1]} 20. b4 {[%clk 0:02:42.2]} 20... c4 {[%clk 0:02:07.6]} 21. Bc2 {[%clk
0:02:40.8]} 21... Rae8 {[%clk 0:02:05.5]} 22. Qd2 {[%clk 0:02:36.9]} 22... Ne4
{[%clk 0:01:48.9]} 23. Bxe4 {[%clk 0:02:30.7]} 23... dxe4 {[%clk 0:01:49.8]} 24.
Nh2 {[%clk 0:02:30.1]} 24... e5 {[%clk 0:01:33]} 25. fxe5 {[%clk 0:02:29.3]}
25... fxe5 {[%clk 0:01:33.1]} 26. Rf1 {[%clk 0:02:25.3]} 26... h5 {[%clk
0:01:19.2]} 27. Rxf8 {[%clk 0:02:23.6]} 27... Rxf8 {[%clk 0:01:20.1]} 28. a5
{[%clk 0:02:21.6]} 28... b5 {[%clk 0:01:13.5]} 29. Rf1 {[%clk 0:02:21.4]} 29...
Rd8 {[%clk 0:00:51.6]} 30. Qf2 {[%clk 0:02:18.3]} 30... exd4 {[%clk 0:00:48.6]}
31. Qf6+ {[%clk 0:02:09]} 31... Kh7 {[%clk 0:00:48.8]} 32. exd4 {[%clk
0:02:05.1]} 32... Rd7 {[%clk 0:00:33.7]} 33. Rf4 {[%clk 0:01:35.2]} 33... e3
{[%clk 0:00:20.3]} 34. Nf3 {[%clk 0:01:35.3]} 34... Bxf3 {[%clk 0:00:14.4]} 35.
Rxf3 {[%clk 0:01:33.9]} 35... e2 {[%clk 0:00:10.2]} 36. Kf2 {[%clk 0:01:19.1]}
36... Re7 {[%clk 0:00:10.5]} 37. Ke1 {[%clk 0:01:19.2]} 37... Qd7 {[%clk
0:00:05.9]} 38. Rf2 {[%clk 0:01:14.9]} 38... Qc7 {[%clk 0:00:03.6]} 39. Qf3
{[%clk 0:00:56.7]} 39... Qd7 {[%clk 0:00:02.3]} 40. Rxe2 {[%clk 0:00:53.8]}
40... Rf7 {[%clk 0:00:02.2]} 41. Qe4 {[%clk 0:00:48.9]} 41... Qd6 {[%clk
0:00:02.7]} 42. Qe5 {[%clk 0:00:46.1]} 42... Qf8 {[%clk 0:00:02.2]} 43. Kd2
{[%clk 0:00:44.5]} 43... Qh6+ {[%clk 0:00:02.4]} 44. Qe3 {[%clk 0:00:43.9]}
44... Qf8 {[%clk 0:00:02.5]} 45. Kc2 {[%clk 0:00:33.5]} 45... Qd6 {[%clk
0:00:02.8]} 46. Qe5 {[%clk 0:00:33.4]} 46... Qd7 {[%clk 0:00:03]} 47. Qe6 {[%clk
0:00:31.4]} 47... Qb7 {[%clk 0:00:03.1]} 48. d5 {[%clk 0:00:31.1]} 48... Rd7
{[%clk 0:00:03.2]} 49. d6 {[%clk 0:00:29.3]} 49... Kh6 {[%clk 0:00:03.7]} 50. h4
{[%clk 0:00:25.6]} 50... Qc6 {[%clk 0:00:03.2]} 51. Qe3+ {[%clk 0:00:25.5]}
51... Kh7 {[%clk 0:00:03.1]} 52. Rd2 {[%clk 0:00:25]} 52... Qb7 {[%clk
0:00:01.8]} 53. Qe6 {[%clk 0:00:22.4]} 53... Qc6 {[%clk 0:00:02.3]} 54. Qe5
{[%clk 0:00:17.5]} 54... Kh6 {[%clk 0:00:01.7]} 55. Qh8+ {[%clk 0:00:16.7]}
55... Rh7 {[%clk 0:00:02.3]} 56. Qf8+ {[%clk 0:00:17]} 56... Rg7 {[%clk
0:00:02.9]} 57. Qf4+ {[%clk 0:00:15.6]} 57... Kh7 {[%clk 0:00:02.9]} 58. g4
{[%clk 0:00:14.8]} 58... hxg4 {[%clk 0:00:02.7]} 59. Qxg4 {[%clk 0:00:14.9]}
59... Rd7 {[%clk 0:00:03.3]} 60. h5 {[%clk 0:00:15.1]} 60... Rxd6 {[%clk
0:00:03.6]} 61. hxg6+ {[%clk 0:00:15.6]} 61... Rxg6 {[%clk 0:00:02.4]} 62. Rd7+
{[%clk 0:00:14.8]} 62... Kg8 {[%clk 0:00:01.8]} 63. Rd8+ {[%clk 0:00:14.8]}
63... Kg7 {[%clk 0:00:01.8]} 64. Qd4+ {[%clk 0:00:14.8]} 64... Kf7 {[%clk
0:00:02.1]} 65. Rd7+ {[%clk 0:00:13.9]} 65... Ke6 {[%clk 0:00:02.7]} 66. Rd8
{[%clk 0:00:06.2]} 66... Qg2+ {[%clk 0:00:03.3]} 67. Kc1 {[%clk 0:00:04.5]}
67... Qh1+ {[%clk 0:00:03.6]} 68. Qd1 {[%clk 0:00:05.1]} 68... Rg1 {[%clk
0:00:03.2]} 69. Rd6+ {[%clk 0:00:05.4]} 69... Ke7 {[%clk 0:00:03.5]} 70. Rd7+
{[%clk 0:00:05.5]} 70... Kf6 {[%clk 0:00:03.7]} 71. Rd6+ {[%clk 0:00:06]} 71...
Ke5 {[%clk 0:00:04.1]} 72. Rd5+ {[%clk 0:00:06]} 72... Ke4 {[%clk 0:00:04.3]}
73. Rd4+ {[%clk 0:00:06.4]} 73... Ke3 {[%clk 0:00:04.8]} 74. Kc2 {[%clk
0:00:04]} 74... Rxd1 {[%clk 0:00:04.3]} 75. Rxd1 {[%clk 0:00:04.2]} 75... Qg2+
{[%clk 0:00:05]} 76. Kb1 {[%clk 0:00:04.2]} 76... Qe2 {[%clk 0:00:05.3]} 77. Rd4
{[%clk 0:00:03.7]} 77... Qe1+ {[%clk 0:00:05.5]} 78. Kc2 {[%clk 0:00:03.9]}
78... Qf2+ {[%clk 0:00:06]} 79. Kc1 {[%clk 0:00:03.9]} 79... Qg1+ {[%clk
0:00:06.5]} 80. Kc2 {[%clk 0:00:04.3]} 80... Qh2+ {[%clk 0:00:06.9]} 81. Kc1
{[%clk 0:00:04.9]} 81... Kf3 {[%clk 0:00:07.3]} 82. Rd2 {[%clk 0:00:02.6]} 82...
Qg1+ {[%clk 0:00:06.9]} 83. Kc2 {[%clk 0:00:03.1]} 83... Qa1 {[%clk 0:00:07.2]}
84. Rd4 {[%clk 0:00:02.9]} 84... Qa2+ {[%clk 0:00:07.5]} 85. Kc1 {[%clk
0:00:03.4]} 85... Ke3 {[%clk 0:00:07.9]} 86. Rd6 {[%clk 0:00:02.9]} 86... Qa3+
{[%clk 0:00:07.7]} 87. Kc2 {[%clk 0:00:03]} 87... Qb3+ {[%clk 0:00:08.2]} 88.
Kc1 {[%clk 0:00:03.1]} 88... Qxc3+ {[%clk 0:00:09.1]} 89. Kd1 {[%clk 0:00:03.4]}
89... Qb3+ {[%clk 0:00:09]} 0-1

[Event "Early-Titled-Tuesday-Blitz-April-16-2024"]
[Site "Chess.com"]
[Date "2024.04.16"]
[Round "6"]
[White "TigrVShlyape"]
[Black "lamomiajunior"]
[Result "1-0"]
[WhiteElo "2938"]
[BlackElo "2744"]
[TimeControl "180+1"]
[EndTime "9:10:33 PDT"]
[Termination "TigrVShlyape won by resignation"]

1. d4 {[%clk 0:03:00.9]} 1... Nf6 {[%clk 0:02:59.5]} 2. Bf4 {[%clk 0:02:58.9]}
2... d5 {[%clk 0:02:57.8]} 3. e3 {[%clk 0:02:59.2]} 3... c5 {[%clk 0:02:57.4]}
4. c3 {[%clk 0:02:59.3]} 4... Nc6 {[%clk 0:02:57.4]} 5. Nd2 {[%clk 0:02:59.2]}
5... Bf5 {[%clk 0:02:57.1]} 6. Qb3 {[%clk 0:02:57.5]} 6... Qc8 {[%clk
0:02:53.1]} 7. a4 {[%clk 0:02:57.1]} 7... e6 {[%clk 0:02:51]} 8. Ngf3 {[%clk
0:02:56.6]} 8... c4 {[%clk 0:02:49.4]} 9. Qa2 {[%clk 0:02:56.2]} 9... h6 {[%clk
0:02:50.3]} 10. b3 {[%clk 0:02:51.6]} 10... cxb3 {[%clk 0:02:48.6]} 11. Qxb3
{[%clk 0:02:51.8]} 11... Be7 {[%clk 0:02:47.8]} 12. Be2 {[%clk 0:02:51.6]} 12...
O-O {[%clk 0:02:48.3]} 13. h3 {[%clk 0:02:49.2]} 13... Na5 {[%clk 0:02:48.7]}
14. Qb2 {[%clk 0:02:48.7]} 14... b6 {[%clk 0:02:49.1]} 15. O-O {[%clk
0:02:47.7]} 15... Ne4 {[%clk 0:02:47.1]} 16. Nxe4 {[%clk 0:02:43.7]} 16... Bxe4
{[%clk 0:02:46.8]} 17. Nd2 {[%clk 0:02:44.2]} 17... Bg6 {[%clk 0:02:46.5]} 18.
Rfc1 {[%clk 0:02:43.2]} 18... Qb7 {[%clk 0:02:12.1]} 19. c4 {[%clk 0:02:41.7]}
19... dxc4 {[%clk 0:02:12.5]} 20. Nxc4 {[%clk 0:02:07.2]} 20... Nxc4 {[%clk
0:02:11.8]} 21. Rxc4 {[%clk 0:02:02.5]} 21... Rac8 {[%clk 0:02:11.9]} 22. a5
{[%clk 0:01:55]} 22... Rxc4 {[%clk 0:01:57.7]} 23. Bxc4 {[%clk 0:01:54.3]} 23...
Rc8 {[%clk 0:01:58.2]} 24. Qb3 {[%clk 0:01:40.3]} 24... Be4 {[%clk 0:01:19]} 25.
axb6 {[%clk 0:01:36.9]} 25... Qxb6 {[%clk 0:00:56.1]} 26. Qxb6 {[%clk
0:01:32.3]} 26... axb6 {[%clk 0:00:57]} 27. Bf1 {[%clk 0:01:29.6]} 27... Bf6
{[%clk 0:00:56.9]} 28. g4 {[%clk 0:01:22.8]} 28... g5 {[%clk 0:00:51]} 29. Bd6
{[%clk 0:01:21.5]} 29... Rc2 {[%clk 0:00:49.2]} 30. Bg2 {[%clk 0:01:17.3]} 30...
Bg6 {[%clk 0:00:43.2]} 31. Bf3 {[%clk 0:01:11.4]} 31... Rb2 {[%clk 0:00:42.2]}
32. Ba3 {[%clk 0:01:02.8]} 32... Rb3 {[%clk 0:00:40.1]} 33. Bd1 {[%clk
0:01:01.4]} 33... Rd3 {[%clk 0:00:36.4]} 34. Be2 {[%clk 0:01:00.1]} 34... Rd2
{[%clk 0:00:35.5]} 35. Kf1 {[%clk 0:00:58.5]} 35... e5 {[%clk 0:00:33]} 36. Bb4
{[%clk 0:00:56.8]} 36... Rb2 {[%clk 0:00:31.3]} 37. Bc3 {[%clk 0:00:56]} 37...
Rc2 {[%clk 0:00:27.7]} 38. dxe5 {[%clk 0:00:56]} 38... Rxc3 {[%clk 0:00:28.2]}
39. exf6 {[%clk 0:00:56]} 39... Rc6 {[%clk 0:00:29.1]} 40. f4 {[%clk 0:00:53.4]}
40... gxf4 {[%clk 0:00:20.4]} 41. exf4 {[%clk 0:00:53.3]} 41... Rxf6 {[%clk
0:00:17.2]} 42. f5 {[%clk 0:00:53]} 42... h5 {[%clk 0:00:16.5]} 43. Bd3 {[%clk
0:00:52.5]} 43... hxg4 {[%clk 0:00:16.2]} 44. hxg4 {[%clk 0:00:52.9]} 44... Rd6
{[%clk 0:00:14.5]} 45. Ke2 {[%clk 0:00:51.9]} 45... Bh7 {[%clk 0:00:14]} 46. g5
{[%clk 0:00:51.9]} 46... Rxd3 {[%clk 0:00:12.8]} 47. Kxd3 {[%clk 0:00:51.5]}
47... Bxf5+ {[%clk 0:00:13.7]} 48. Kd4 {[%clk 0:00:51.8]} 48... Kg7 {[%clk
0:00:14.2]} 49. Ke5 {[%clk 0:00:52]} 49... Bd3 {[%clk 0:00:14.3]} 50. Ra3 {[%clk
0:00:50.5]} 50... Bc4 {[%clk 0:00:14.3]} 51. Ra7 {[%clk 0:00:43]} 51... b5
{[%clk 0:00:13.4]} 52. Ra6 {[%clk 0:00:41.8]} 52... Bd3 {[%clk 0:00:11.2]} 53.
Rb6 {[%clk 0:00:41.4]} 53... Bc4 {[%clk 0:00:11.4]} 54. Rd6 {[%clk 0:00:41.1]}
54... Be2 {[%clk 0:00:10.2]} 55. Kf5 {[%clk 0:00:38.7]} 55... Bc4 {[%clk
0:00:09.7]} 56. Rb6 {[%clk 0:00:36.1]} 56... Be6+ {[%clk 0:00:09.4]} 57. Ke5
{[%clk 0:00:34.7]} 57... Bc4 {[%clk 0:00:10.3]} 58. Rb7 {[%clk 0:00:31.1]} 58...
Bd3 {[%clk 0:00:10]} 59. Kf4 {[%clk 0:00:29.4]} 59... Bc4 {[%clk 0:00:10.6]} 60.
Kf5 {[%clk 0:00:28.5]} 60... Be6+ {[%clk 0:00:11.2]} 61. Kf4 {[%clk 0:00:28.3]}
61... Bc4 {[%clk 0:00:12.1]} 62. Kg4 {[%clk 0:00:28.8]} 62... Bd3 {[%clk
0:00:11.3]} 63. Rb6 {[%clk 0:00:27.7]} 63... Be2+ {[%clk 0:00:11.2]} 64. Kh4
{[%clk 0:00:27.4]} 64... Bc4 {[%clk 0:00:11.2]} 65. Kh5 {[%clk 0:00:27.5]} 65...
Be2+ {[%clk 0:00:11.3]} 66. Kh4 {[%clk 0:00:27.5]} 66... Bc4 {[%clk 0:00:12.2]}
67. Kg4 {[%clk 0:00:27.9]} 67... Be6+ {[%clk 0:00:11.6]} 68. Kf4 {[%clk
0:00:27.8]} 68... Bc4 {[%clk 0:00:12.5]} 69. g6 {[%clk 0:00:28]} 69... fxg6
{[%clk 0:00:12.3]} 70. Kg5 {[%clk 0:00:28.4]} 70... Kf7 {[%clk 0:00:10.9]} 71.
Rf6+ {[%clk 0:00:27.6]} 71... Ke7 {[%clk 0:00:11.2]} 72. Kxg6 {[%clk 0:00:26.1]}
72... Kd7 {[%clk 0:00:11.3]} 73. Kf5 {[%clk 0:00:24.8]} 73... Kc7 {[%clk
0:00:10.1]} 74. Ke5 {[%clk 0:00:25]} 74... b4 {[%clk 0:00:07.8]} 75. Rf4 {[%clk
0:00:24.7]} 75... Bb5 {[%clk 0:00:07.4]} 76. Rxb4 {[%clk 0:00:24.9]} 76... Kc6
{[%clk 0:00:08.3]} 77. Rb2 {[%clk 0:00:24.5]} 77... Kc5 {[%clk 0:00:09.2]} 78.
Rc2+ {[%clk 0:00:24.4]} 78... Bc4 {[%clk 0:00:09.8]} 79. Rc1 {[%clk 0:00:24.8]}
79... Kb4 {[%clk 0:00:08.7]} 80. Kd4 {[%clk 0:00:25.1]} 80... Be6 {[%clk
0:00:06]} 81. Rb1+ {[%clk 0:00:25.3]} 81... Ka3 {[%clk 0:00:05.1]} 82. Kc3
{[%clk 0:00:24.9]} 82... Ka4 {[%clk 0:00:04.5]} 83. Rb6 {[%clk 0:00:23.9]} 83...
Bf7 {[%clk 0:00:03.9]} 84. Rf6 {[%clk 0:00:23.5]} 84... Bg8 {[%clk 0:00:03.2]}
85. Rf5 {[%clk 0:00:21]} 85... Be6 {[%clk 0:00:03.7]} 86. Re5 {[%clk 0:00:20.3]}
86... Bg8 {[%clk 0:00:04.2]} 87. Re8 {[%clk 0:00:18.8]} 87... Bf7 {[%clk
0:00:04.2]} 88. Rb8 {[%clk 0:00:19.5]} 88... Be6 {[%clk 0:00:03.6]} 89. Rb4+
{[%clk 0:00:19]} 89... Ka5 {[%clk 0:00:03.6]} 90. Rb1 {[%clk 0:00:18.6]} 90...
Ka4 {[%clk 0:00:03.3]} 91. Kd4 {[%clk 0:00:18.4]} 91... Bf7 {[%clk 0:00:03.4]}
92. Kc5 {[%clk 0:00:18.5]} 92... Bg8 {[%clk 0:00:02.3]} 93. Rb4+ {[%clk
0:00:18.4]} 93... Ka3 {[%clk 0:00:02.8]} 94. Rb8 {[%clk 0:00:18]} 94... Bb3
{[%clk 0:00:03.5]} 95. Kd4 {[%clk 0:00:18]} 95... Bf7 {[%clk 0:00:03]} 96. Kc3
{[%clk 0:00:18]} 96... Ka4 {[%clk 0:00:02.3]} 97. Rb7 {[%clk 0:00:17.8]} 97...
Bd5 {[%clk 0:00:02.4]} 98. Rb4+ {[%clk 0:00:17.6]} 98... Ka5 {[%clk 0:00:02.7]}
99. Rf4 {[%clk 0:00:17.4]} 99... Bc6 {[%clk 0:00:03.2]} 100. Kc4 {[%clk
0:00:17.5]} 100... Kb6 {[%clk 0:00:04.1]} 101. Rf6 {[%clk 0:00:17.1]} 101... Kc7
{[%clk 0:00:05]} 102. Kc5 {[%clk 0:00:17.5]} 102... Be4 {[%clk 0:00:05.5]} 103.
Rf7+ {[%clk 0:00:17.8]} 103... Kd8 {[%clk 0:00:06.1]} 104. Kd6 {[%clk
0:00:18.4]} 104... Ke8 {[%clk 0:00:06.7]} 105. Re7+ {[%clk 0:00:18.7]} 1-0

[Event "Early-Titled-Tuesday-Blitz-April-16-2024"]
[Site "Chess.com"]
[Date "2024.04.16"]
[Round "6"]
[White "chess123456s"]
[Black "NajdorfPlayerc5"]
[Result "1/2-1/2"]
[WhiteElo "2602"]
[BlackElo "2406"]
[TimeControl "180+1"]
[EndTime "9:10:45 PDT"]
[Termination "Game drawn by 50-move rule"]

1. d4 {[%clk 0:03:00.9]} 1... Nf6 {[%clk 0:02:59.5]} 2. Nf3 {[%clk 0:03:01.1]}
2... e6 {[%clk 0:02:59]} 3. Bf4 {[%clk 0:03:01.3]} 3... c5 {[%clk 0:02:56.5]} 4.
e3 {[%clk 0:03:01.6]} 4... Nc6 {[%clk 0:02:54.2]} 5. Nbd2 {[%clk 0:03:01.8]}
5... d5 {[%clk 0:02:53]} 6. c3 {[%clk 0:03:02.1]} 6... Bd6 {[%clk 0:02:52.3]} 7.
Bg3 {[%clk 0:03:02.2]} 7... Qe7 {[%clk 0:02:48.1]} 8. Bd3 {[%clk 0:03:02.1]}
8... O-O {[%clk 0:02:45.9]} 9. Ne5 {[%clk 0:03:00.8]} 9... Nd7 {[%clk 0:02:43]}
10. Nxd7 {[%clk 0:03:01]} 10... Qxd7 {[%clk 0:02:38.8]} 11. Bxd6 {[%clk
0:02:53.2]} 11... Qxd6 {[%clk 0:02:35.9]} 12. O-O {[%clk 0:02:50.4]} 12... e5
{[%clk 0:02:32.8]} 13. dxc5 {[%clk 0:02:50.1]} 13... Qxc5 {[%clk 0:02:32.3]} 14.
e4 {[%clk 0:02:50.5]} 14... d4 {[%clk 0:02:12.5]} 15. Nb3 {[%clk 0:02:47.7]}
15... Qb6 {[%clk 0:02:11.7]} 16. cxd4 {[%clk 0:02:38.6]} 16... Nxd4 {[%clk
0:02:10.7]} 17. Bc4 {[%clk 0:02:38.6]} 17... Be6 {[%clk 0:01:59.8]} 18. Bxe6
{[%clk 0:02:36.1]} 18... Nxe6 {[%clk 0:02:00.7]} 19. Qd5 {[%clk 0:02:34.6]}
19... a5 {[%clk 0:01:20.9]} 20. Qxe5 {[%clk 0:02:26.4]} 20... a4 {[%clk
0:01:20.9]} 21. Nd2 {[%clk 0:02:26.1]} 21... Ra5 {[%clk 0:01:15]} 22. Qc3 {[%clk
0:02:22.1]} 22... Rc5 {[%clk 0:01:09.4]} 23. Qa3 {[%clk 0:02:20.8]} 23... Rc2
{[%clk 0:01:09.2]} 24. Nf3 {[%clk 0:02:11.4]} 24... Rxb2 {[%clk 0:00:57]} 25.
Rad1 {[%clk 0:02:11.1]} 25... Qb4 {[%clk 0:00:53.3]} 26. Qxb4 {[%clk 0:02:10.6]}
26... Rxb4 {[%clk 0:00:54.2]} 27. Rb1 {[%clk 0:02:11.5]} 27... Rxe4 {[%clk
0:00:51.9]} 28. Rxb7 {[%clk 0:02:10.5]} 28... Re2 {[%clk 0:00:52.2]} 29. Ra1
{[%clk 0:02:02.7]} 29... Rd8 {[%clk 0:00:50]} 30. g3 {[%clk 0:01:58.6]} 30... h6
{[%clk 0:00:46.4]} 31. Ra7 {[%clk 0:01:56.7]} 31... Nd4 {[%clk 0:00:45.7]} 32.
Kg2 {[%clk 0:01:42.6]} 32... Nxf3 {[%clk 0:00:42.9]} 33. Kxf3 {[%clk 0:01:42.8]}
33... Rdd2 {[%clk 0:00:43.6]} 34. Rf1 {[%clk 0:01:27.5]} 34... Rxa2 {[%clk
0:00:43.4]} 35. Rxa4 {[%clk 0:01:27]} 35... Rxf2+ {[%clk 0:00:43.1]} 36. Rxf2
{[%clk 0:01:27.9]} 36... Rxa4 {[%clk 0:00:43.5]} 37. Rb2 {[%clk 0:01:28.6]}
37... Kh7 {[%clk 0:00:42.6]} 38. h4 {[%clk 0:01:28.5]} 38... Kg6 {[%clk
0:00:38.9]} 39. Rb5 {[%clk 0:01:28.2]} 39... f6 {[%clk 0:00:36]} 40. Rc5 {[%clk
0:01:27.2]} 40... f5 {[%clk 0:00:34.5]} 41. Rb5 {[%clk 0:01:26.7]} 41... Ra6
{[%clk 0:00:30.9]} 42. Rc5 {[%clk 0:01:27]} 42... Kf6 {[%clk 0:00:29.1]} 43. Rb5
{[%clk 0:01:27.3]} 43... g5 {[%clk 0:00:27.3]} 44. hxg5+ {[%clk 0:01:28.2]}
44... hxg5 {[%clk 0:00:28.2]} 45. Rc5 {[%clk 0:01:28.5]} 45... Ra3+ {[%clk
0:00:27.4]} 46. Kf2 {[%clk 0:01:28.6]} 46... Kg6 {[%clk 0:00:26.8]} 47. Rc8
{[%clk 0:01:28.2]} 47... Kh5 {[%clk 0:00:26.4]} 48. Rc4 {[%clk 0:01:28.1]} 48...
Ra2+ {[%clk 0:00:24]} 49. Kg1 {[%clk 0:01:24.1]} 49... Ra5 {[%clk 0:00:18.2]}
50. Kg2 {[%clk 0:01:23.5]} 50... Re5 {[%clk 0:00:09.5]} 51. Rc2 {[%clk
0:01:23.3]} 51... Kg4 {[%clk 0:00:08.5]} 52. Rd2 {[%clk 0:01:21.2]} 52... Re4
{[%clk 0:00:08.8]} 53. Rc2 {[%clk 0:01:20.8]} 53... f4 {[%clk 0:00:09.4]} 54.
gxf4 {[%clk 0:01:21.7]} 54... gxf4 {[%clk 0:00:10.2]} 55. Kf2 {[%clk 0:01:22.3]}
55... Ra4 {[%clk 0:00:09.7]} 56. Rb2 {[%clk 0:01:22.5]} 56... Ra3 {[%clk
0:00:10.2]} 57. Kg2 {[%clk 0:01:20.4]} 57... Rg3+ {[%clk 0:00:08.6]} 58. Kf2
{[%clk 0:01:20.7]} 58... Rh3 {[%clk 0:00:09]} 59. Kg2 {[%clk 0:01:18]} 59... f3+
{[%clk 0:00:09.4]} 60. Kg1 {[%clk 0:01:18.5]} 60... Kg3 {[%clk 0:00:09]} 61.
Rg2+ {[%clk 0:01:18.9]} 61... Kf4 {[%clk 0:00:07.8]} 62. Rb2 {[%clk 0:01:15.7]}
62... Rh8 {[%clk 0:00:08.4]} 63. Rc2 {[%clk 0:01:10]} 63... Rg8+ {[%clk
0:00:05.5]} 64. Kf1 {[%clk 0:01:09.7]} 64... Ra8 {[%clk 0:00:05.6]} 65. Kf2
{[%clk 0:01:08.8]} 65... Rh8 {[%clk 0:00:05.1]} 66. Rc4+ {[%clk 0:01:08.8]}
66... Ke5 {[%clk 0:00:04.9]} 67. Kxf3 {[%clk 0:01:09.7]} 67... Kd5 {[%clk
0:00:05.7]} 68. Ra4 {[%clk 0:01:09.7]} 68... Rc8 {[%clk 0:00:06.2]} 69. Ke3
{[%clk 0:01:09.1]} 69... Kd6 {[%clk 0:00:06.9]} 70. Kd4 {[%clk 0:01:08.9]} 70...
Kd7 {[%clk 0:00:07.8]} 71. Kd5 {[%clk 0:01:08.8]} 71... Rc7 {[%clk 0:00:08]} 72.
Rh4 {[%clk 0:01:08.6]} 72... Kc8 {[%clk 0:00:08.5]} 73. Kd6 {[%clk 0:01:08.8]}
73... Rd7+ {[%clk 0:00:08.7]} 74. Kc6 {[%clk 0:01:09.3]} 74... Rc7+ {[%clk
0:00:09.1]} 75. Kb6 {[%clk 0:01:09.9]} 75... Rb7+ {[%clk 0:00:09.8]} 76. Ka6
{[%clk 0:01:10.6]} 76... Rd7 {[%clk 0:00:10.4]} 77. Rh8+ {[%clk 0:01:09.4]}
77... Kc7 {[%clk 0:00:10.6]} 78. Rh4 {[%clk 0:01:10]} 78... Rd6+ {[%clk
0:00:10.7]} 79. Kb5 {[%clk 0:01:10.5]} 79... Rd5+ {[%clk 0:00:10.6]} 80. Kc4
{[%clk 0:01:10.5]} 80... Rd7 {[%clk 0:00:11.2]} 81. Kc5 {[%clk 0:01:10.9]} 81...
Rg7 {[%clk 0:00:10.7]} 82. Rh5 {[%clk 0:01:10.5]} 82... Kd7 {[%clk 0:00:10.8]}
83. Kd5 {[%clk 0:01:10]} 83... Re7 {[%clk 0:00:02.1]} 84. Rh6 {[%clk 0:01:08.5]}
84... Kc7 {[%clk 0:00:02.8]} 85. Ra6 {[%clk 0:01:08.2]} 85... Kd8 {[%clk
0:00:03.4]} 86. Ra8+ {[%clk 0:01:07.2]} 86... Kd7 {[%clk 0:00:04.1]} 87. Rb8
{[%clk 0:01:07.2]} 87... Rf7 {[%clk 0:00:03.3]} 88. Rb7+ {[%clk 0:01:05.6]}
88... Ke8 {[%clk 0:00:03.5]} 89. Rb6 {[%clk 0:01:06.2]} 89... Ke7 {[%clk
0:00:03.8]} 90. Ke5 {[%clk 0:01:06.6]} 90... Kf8 {[%clk 0:00:04.4]} 91. Ke6
{[%clk 0:01:06]} 91... Kg7 {[%clk 0:00:05.3]} 92. Rb3 {[%clk 0:01:05.5]} 92...
Rf6+ {[%clk 0:00:05.7]} 93. Ke5 {[%clk 0:01:06.1]} 93... Rf7 {[%clk 0:00:04.6]}
94. Rg3+ {[%clk 0:01:05.8]} 94... Kf8 {[%clk 0:00:05]} 95. Ke6 {[%clk
0:01:06.3]} 95... Re7+ {[%clk 0:00:05.2]} 96. Kd6 {[%clk 0:01:06.7]} 96... Rf7
{[%clk 0:00:05.9]} 97. Rb3 {[%clk 0:01:05.6]} 97... Kg7 {[%clk 0:00:06]} 98. Ke6
{[%clk 0:01:06]} 98... Rf6+ {[%clk 0:00:06.2]} 99. Ke5 {[%clk 0:01:06.5]} 99...
Rf7 {[%clk 0:00:06.9]} 100. Rb6 {[%clk 0:01:05.7]} 100... Kf8 {[%clk 0:00:06.9]}
101. Ke6 {[%clk 0:01:05.4]} 101... Kg7 {[%clk 0:00:06.3]} 102. Ke5 {[%clk
0:01:03.2]} 102... Re7+ {[%clk 0:00:06.4]} 103. Kf5 {[%clk 0:01:03.4]} 103...
Rf7+ {[%clk 0:00:06.9]} 104. Kg5 {[%clk 0:01:04.1]} 104... Ra7 {[%clk
0:00:07.5]} 105. Rb5 {[%clk 0:01:04.2]} 105... Kf7 {[%clk 0:00:06.3]} 106. Re5
{[%clk 0:01:04]} 106... Kg7 {[%clk 0:00:06.9]} 107. Kh5 {[%clk 0:01:03.5]}
107... Rf7 {[%clk 0:00:06.6]} 108. Kg4 {[%clk 0:01:03.1]} 108... Kf8 {[%clk
0:00:07.5]} 109. Kg5 {[%clk 0:01:03.1]} 109... Rg7+ {[%clk 0:00:08.4]} 110. Kf6
{[%clk 0:01:03]} 110... Rf7+ {[%clk 0:00:09]} 111. Kg6 {[%clk 0:01:03.7]} 111...
Rg7+ {[%clk 0:00:09.4]} 112. Kh6 {[%clk 0:01:04.4]} 112... Rf7 {[%clk
0:00:09.7]} 113. Rc5 {[%clk 0:01:04.3]} 113... Ke7 {[%clk 0:00:09.6]} 114. Kg6
{[%clk 0:01:03.9]} 114... Rf6+ {[%clk 0:00:09.7]} 115. Kg7 {[%clk 0:01:04.2]}
115... Rd6 {[%clk 0:00:09]} 116. Re5+ {[%clk 0:01:03.3]} 116... Kd8 {[%clk
0:00:09.2]} 117. Kf7 {[%clk 0:01:03.1]} 1/2-1/2